fUST/lending_fUST_20260608
["ID","MTS","AMOUNT","RATE_DAILY","PERIOD"]
[424445550,1780907447000,-673.23,0.00016986,2]
[424445551,1780907447000,-500.0,0.00016986,2]
[424445553,1780907447000,-622.22,0.00016986,2]
[424445561,1780907447000,-602.05,0.00016986,2]
[424445552,1780907447000,-500.0,0.00016986,2]
[424445571,1780907447000,-842.68,0.00016986,2]
[424445563,1780907447000,-896.42,0.00016986,2]
[424445558,1780907447000,-500.0,0.00016986,2]
[424445554,1780907447000,-1168.98,0.00016986,2]
[424445556,1780907447000,-500.0,0.00016986,2]
[424445559,1780907447000,-500.0,0.00016986,2]
[424445564,1780907447000,-500.0,0.00016986,2]
[424445562,1780907447000,-959.96,0.00016986,2]
[424445555,1780907447000,-500.0,0.00016986,2]
[424445560,1780907447000,-604.38,0.00016986,2]
[424445557,1780907447000,-500.0,0.00016986,2]
[424445566,1780907447000,-3625.29,0.00016986,2]
[424445569,1780907447000,-575.61,0.00016986,2]
[424445568,1780907447000,-500.96936174,0.00016986,2]
[424445570,1780907447000,-1898.22,0.00016986,2]
[424445565,1780907447000,-500.0,0.00016986,2]
[424445602,1780907447000,-10189.38350502,0.00017,2]
[424445604,1780907447000,-154.62,0.00017258,2]
[424445603,1780907447000,-308.87538449,0.00017104,2]
[424445632,1780907447000,-500.0,0.0001726,2]
[424445641,1780907447000,-516.88,0.0001726,2]
[424445652,1780907447000,-500.0,0.0001726,2]
[424445651,1780907447000,-673.23,0.0001726,2]
[424445640,1780907447000,-500.0,0.0001726,2]
[424445644,1780907447000,-569.74,0.0001726,2]
[424445648,1780907447000,-1178.63,0.0001726,2]
[424445647,1780907447000,-790.52,0.0001726,2]
[424445643,1780907447000,-500.0,0.0001726,2]
[424445645,1780907447000,-500.0,0.0001726,2]
[424445642,1780907447000,-274.23509904,0.0001726,2]
[424445646,1780907447000,-500.0,0.0001726,2]
[424445650,1780907447000,-500.0,0.0001726,2]
[424445633,1780907447000,-500.0,0.0001726,2]
[424445649,1780907447000,-536.24,0.0001726,2]
[424445656,1780907447000,-500.0,0.0001726,2]
[424445660,1780907447000,-500.0,0.0001726,2]
[424445659,1780907447000,-500.0,0.0001726,2]
[424445655,1780907447000,-1168.98,0.0001726,2]
[424445661,1780907447000,-604.38,0.0001726,2]
[424445657,1780907447000,-500.0,0.0001726,2]
[424445658,1780907447000,-500.0,0.0001726,2]
[424445662,1780907447000,-602.05,0.0001726,2]
[424445663,1780907447000,-959.96,0.0001726,2]
[424445664,1780907447000,-896.42,0.0001726,2]
[424445666,1780907447000,-500.0,0.0001726,2]
[424445654,1780907447000,-622.22,0.0001726,2]
[424445667,1780907447000,-3625.29,0.0001726,2]
[424445653,1780907447000,-500.0,0.0001726,2]
[424445634,1780907447000,-500.0,0.0001726,2]
[424445665,1780907447000,-500.0,0.0001726,2]
[424445639,1780907447000,-500.0,0.0001726,2]
[424445635,1780907447000,-664.29,0.0001726,2]
[424445605,1780907447000,-165.0304,0.0001726,2]
[424445607,1780907447000,-500.0,0.0001726,2]
[424445610,1780907447000,-500.0,0.0001726,2]
[424445608,1780907447000,-151.46837748,0.0001726,2]
[424445609,1780907447000,-500.0,0.0001726,2]
[424445611,1780907447000,-500.0,0.0001726,2]
[424445613,1780907447000,-279.71604246,0.0001726,2]
[424445615,1780907447000,-500.0,0.0001726,2]
[424445624,1780907447000,-500.0,0.0001726,2]
[424445625,1780907447000,-500.0,0.0001726,2]
[424445617,1780907447000,-500.0,0.0001726,2]
[424445618,1780907447000,-606.81,0.0001726,2]
[424445619,1780907447000,-500.0,0.0001726,2]
[424445612,1780907447000,-500.0,0.0001726,2]
[424445621,1780907447000,-548.35,0.0001726,2]
[424445614,1780907447000,-500.0,0.0001726,2]
[424445638,1780907447000,-500.0,0.0001726,2]
[424445630,1780907447000,-500.0,0.0001726,2]
[424445628,1780907447000,-500.0,0.0001726,2]
[424445631,1780907447000,-500.0,0.0001726,2]
[424445629,1780907447000,-534.25,0.0001726,2]
[424445637,1780907447000,-500.0,0.0001726,2]
[424445622,1780907447000,-326.74597172,0.0001726,2]
[424445626,1780907447000,-500.0,0.0001726,2]
[424445627,1780907447000,-500.0,0.0001726,2]
[424445616,1780907447000,-500.0,0.0001726,2]
[424445636,1780907447000,-710.97,0.0001726,2]
[424445620,1780907447000,-500.0,0.0001726,2]
[424445623,1780907447000,-1561.73,0.0001726,2]
[424445704,1780907448000,-355.630223,0.00017452,2]
[424445692,1780907448000,-558.46,0.0001726,2]
[424445700,1780907448000,-500.0,0.0001726,2]
[424445695,1780907448000,-500.06136705,0.0001726,2]
[424445698,1780907448000,-1785.17,0.0001726,2]
[424445713,1780907448000,-180.312984,0.00017452,2]
[424445703,1780907448000,-180.08109753,0.00017392,2]
[424445714,1780907448000,-308.87538449,0.0001746,2]
[424445702,1780907448000,-389.173845,0.00017346,2]
[424445711,1780907448000,-225.391229,0.00017452,2]
[424445696,1780907448000,-500.0,0.0001726,2]
[424445699,1780907448000,-500.0,0.0001726,2]
[424445708,1780907448000,-203.041082,0.00017452,2]
[424445709,1780907448000,-293.657434,0.00017452,2]
[424445710,1780907448000,-160.0,0.00017452,2]
[424445706,1780907448000,-160.0,0.00017452,2]
[424445712,1780907448000,-290.782458,0.00017452,2]
[424445715,1780907448000,-225.0,0.00017476,2]
[424445717,1780907448000,-350.0,0.00017476,2]
[424445716,1780907448000,-210.0,0.00017476,2]
[424445718,1780907448000,-157.0,0.00017476,2]
[424445725,1780907448000,-500.0,0.00017534,2]
[424445697,1780907448000,-500.0,0.0001726,2]
[424445727,1780907448000,-500.0,0.00017534,2]
[424445705,1780907448000,-375.708195,0.00017452,2]
[424445701,1780907448000,-308.87538449,0.00017282,2]
[424445673,1780907448000,-831.69,0.0001726,2]
[424445693,1780907448000,-500.0,0.0001726,2]
[424445724,1780907448000,-1328.6413,0.00017534,2]
[424445668,1780907448000,-500.0,0.0001726,2]
[424445680,1780907448000,-1444.43,0.0001726,2]
[424445679,1780907448000,-677.8,0.0001726,2]
[424445678,1780907448000,-2203.02,0.0001726,2]
[424445676,1780907448000,-500.0,0.0001726,2]
[424445675,1780907448000,-500.0,0.0001726,2]
[424445669,1780907448000,-575.61,0.0001726,2]
[424445670,1780907448000,-1898.22,0.0001726,2]
[424445677,1780907448000,-1471.15,0.0001726,2]
[424445674,1780907448000,-2202.68,0.0001726,2]
[424445694,1780907448000,-500.0,0.0001726,2]
[424445671,1780907448000,-842.68,0.0001726,2]
[424445681,1780907448000,-969.84,0.0001726,2]
[424445683,1780907448000,-711.19,0.0001726,2]
[424445689,1780907448000,-500.0,0.0001726,2]
[424445685,1780907448000,-4858.05,0.0001726,2]
[424445690,1780907448000,-500.0,0.0001726,2]
[424445686,1780907448000,-781.68,0.0001726,2]
[424445687,1780907448000,-500.0,0.0001726,2]
[424445682,1780907448000,-500.0,0.0001726,2]
[424445688,1780907448000,-500.0,0.0001726,2]
[424445684,1780907448000,-500.0,0.0001726,2]
[424445691,1780907448000,-1111.31,0.0001726,2]
[424445672,1780907448000,-1160.72,0.0001726,2]
[424445726,1780907448000,-500.0,0.00017534,2]
[424445707,1780907448000,-181.520541,0.00017452,2]
[424445722,1780907448000,-160.0,0.00017529,2]
[424445753,1780907448000,-500.0,0.00017534,2]
[424445752,1780907448000,-500.0,0.00017534,2]
[424445759,1780907448000,-500.0,0.00017534,2]
[424445760,1780907448000,-500.0,0.00017534,2]
[424445758,1780907448000,-569.74,0.00017534,2]
[424445757,1780907448000,-500.0,0.00017534,2]
[424445756,1780907448000,-516.88,0.00017534,2]
[424445755,1780907448000,-500.0,0.00017534,2]
[424445761,1780907448000,-790.52,0.00017534,2]
[424445763,1780907448000,-536.24,0.00017534,2]
[424445764,1780907448000,-500.0,0.00017534,2]
[424445765,1780907448000,-673.23,0.00017534,2]
[424445762,1780907448000,-1178.63,0.00017534,2]
[424445767,1780907448000,-500.0,0.00017534,2]
[424445769,1780907448000,-1168.98,0.00017534,2]
[424445768,1780907448000,-622.22,0.00017534,2]
[424445766,1780907448000,-500.0,0.00017534,2]
[424445770,1780907448000,-500.0,0.00017534,2]
[424445772,1780907448000,-500.0,0.00017534,2]
[424445774,1780907448000,-500.0,0.00017534,2]
[424445773,1780907448000,-500.0,0.00017534,2]
[424445771,1780907448000,-500.0,0.00017534,2]
[424445775,1780907448000,-604.38,0.00017534,2]
[424445777,1780907448000,-959.96,0.00017534,2]
[424445778,1780907448000,-896.42,0.00017534,2]
[424445754,1780907448000,-500.0,0.00017534,2]
[424445751,1780907448000,-710.97,0.00017534,2]
[424445719,1780907448000,-175.0,0.00017476,2]
[424445750,1780907448000,-664.29,0.00017534,2]
[424445721,1780907448000,-192.93055691,0.000175,2]
[424445720,1780907448000,-9826.65193295,0.000175,2]
[424445723,1780907448000,-160.0,0.00017529,2]
[424445729,1780907448000,-500.0,0.00017534,2]
[424445728,1780907448000,-540.81559094,0.00017534,2]
[424445740,1780907448000,-500.0,0.00017534,2]
[424445739,1780907448000,-500.0,0.00017534,2]
[424445741,1780907448000,-500.0,0.00017534,2]
[424445731,1780907448000,-500.0,0.00017534,2]
[424445734,1780907448000,-606.81,0.00017534,2]
[424445730,1780907448000,-500.0,0.00017534,2]
[424445737,1780907448000,-548.35,0.00017534,2]
[424445749,1780907448000,-500.0,0.00017534,2]
[424445733,1780907448000,-500.0,0.00017534,2]
[424445748,1780907448000,-500.0,0.00017534,2]
[424445747,1780907448000,-500.0,0.00017534,2]
[424445746,1780907448000,-500.0,0.00017534,2]
[424445732,1780907448000,-500.0,0.00017534,2]
[424445745,1780907448000,-500.0,0.00017534,2]
[424445742,1780907448000,-500.0,0.00017534,2]
[424445743,1780907448000,-500.0,0.00017534,2]
[424445736,1780907448000,-500.0,0.00017534,2]
[424445738,1780907448000,-1561.73,0.00017534,2]
[424445776,1780907448000,-602.05,0.00017534,2]
[424445735,1780907448000,-500.0,0.00017534,2]
[424445744,1780907448000,-534.25,0.00017534,2]
[424445816,1780907449000,-160.0,0.00017629,2]
[424445814,1780907449000,-840.0,0.00017578,2]
[424445815,1780907449000,-363.15802,0.00017608,2]
[424445817,1780907449000,-201.977361,0.00017629,2]
[424445810,1780907449000,-500.0,0.00017534,2]
[424445807,1780907449000,-500.0,0.00017534,2]
[424445813,1780907449000,-500.0,0.00017534,2]
[424445812,1780907449000,-500.0,0.00017534,2]
[424445808,1780907449000,-500.0,0.00017534,2]
[424445818,1780907449000,-243.954722,0.00017629,2]
[424445811,1780907449000,-1785.17,0.00017534,2]
[424445822,1780907449000,-9826.65193295,0.000177,2]
[424445826,1780907449000,-500.0,0.00017808,2]
[424445819,1780907449000,-161.58189,0.00017629,2]
[424445829,1780907449000,-500.0,0.00017808,2]
[424445821,1780907449000,-153.87138257,0.00017687,2]
[424445820,1780907449000,-350.360607,0.00017629,2]
[424445824,1780907449000,-1328.6413,0.00017808,2]
[424445823,1780907449000,-192.93055691,0.000177,2]
[424445828,1780907449000,-500.0,0.00017808,2]
[424445830,1780907449000,-500.0,0.00017808,2]
[424445831,1780907449000,-500.0,0.00017808,2]
[424445832,1780907449000,-361.4048721,0.00017808,2]
[424445809,1780907449000,-500.0,0.00017534,2]
[424445825,1780907449000,-500.0,0.00017808,2]
[424445839,1780907449000,-500.0,0.00017808,2]
[424445794,1780907449000,-1444.43,0.00017534,2]
[424445801,1780907449000,-500.0,0.00017534,2]
[424445779,1780907449000,-567.95576903,0.00017534,2]
[424445782,1780907449000,-500.0,0.00017534,2]
[424445781,1780907449000,-3625.29,0.00017534,2]
[424445780,1780907449000,-500.0,0.00017534,2]
[424445785,1780907449000,-1160.72,0.00017534,2]
[424445784,1780907449000,-842.68,0.00017534,2]
[424445783,1780907449000,-575.61,0.00017534,2]
[424445786,1780907449000,-1898.22,0.00017534,2]
[424445790,1780907449000,-500.0,0.00017534,2]
[424445788,1780907449000,-2202.68,0.00017534,2]
[424445789,1780907449000,-500.0,0.00017534,2]
[424445791,1780907449000,-1471.15,0.00017534,2]
[424445787,1780907449000,-831.69,0.00017534,2]
[424445793,1780907449000,-677.8,0.00017534,2]
[424445833,1780907449000,-606.81,0.00017808,2]
[424445792,1780907449000,-2203.02,0.00017534,2]
[424445796,1780907449000,-500.0,0.00017534,2]
[424445795,1780907449000,-969.84,0.00017534,2]
[424445798,1780907449000,-292.44901931,0.00017534,2]
[424445805,1780907449000,-1111.31,0.00017534,2]
[424445799,1780907449000,-4858.05,0.00017534,2]
[424445797,1780907449000,-711.19,0.00017534,2]
[424445800,1780907449000,-781.68,0.00017534,2]
[424445803,1780907449000,-500.0,0.00017534,2]
[424445802,1780907449000,-500.0,0.00017534,2]
[424445804,1780907449000,-500.0,0.00017534,2]
[424445840,1780907449000,-500.0,0.00017808,2]
[424445806,1780907449000,-558.46,0.00017534,2]
[424445841,1780907449000,-500.0,0.00017808,2]
[424445877,1780907449000,-896.42,0.00017808,2]
[424445878,1780907449000,-500.0,0.00017808,2]
[424445879,1780907449000,-3625.29,0.00017808,2]
[424445866,1780907449000,-500.0,0.00017808,2]
[424445868,1780907449000,-1168.98,0.00017808,2]
[424445872,1780907449000,-500.0,0.00017808,2]
[424445871,1780907449000,-500.0,0.00017808,2]
[424445869,1780907449000,-500.0,0.00017808,2]
[424445870,1780907449000,-500.0,0.00017808,2]
[424445876,1780907449000,-959.96,0.00017808,2]
[424445875,1780907449000,-602.05,0.00017808,2]
[424445873,1780907449000,-500.0,0.00017808,2]
[424445867,1780907449000,-622.22,0.00017808,2]
[424445874,1780907449000,-604.38,0.00017808,2]
[424445881,1780907449000,-575.61,0.00017808,2]
[424445882,1780907449000,-842.68,0.00017808,2]
[424445887,1780907449000,-500.0,0.00017808,2]
[424445889,1780907449000,-1471.15,0.00017808,2]
[424445884,1780907449000,-1898.22,0.00017808,2]
[424445886,1780907449000,-2202.68,0.00017808,2]
[424445888,1780907449000,-500.0,0.00017808,2]
[424445883,1780907449000,-1160.72,0.00017808,2]
[424445885,1780907449000,-831.69,0.00017808,2]
[424445891,1780907449000,-677.8,0.00017808,2]
[424445890,1780907449000,-2203.02,0.00017808,2]
[424445835,1780907449000,-500.0,0.00017808,2]
[424445880,1780907449000,-500.0,0.00017808,2]
[424445862,1780907449000,-536.24,0.00017808,2]
[424445827,1780907449000,-500.0,0.00017808,2]
[424445861,1780907449000,-1178.63,0.00017808,2]
[424445834,1780907449000,-500.0,0.00017808,2]
[424445836,1780907449000,-548.35,0.00017808,2]
[424445837,1780907449000,-1561.73,0.00017808,2]
[424445838,1780907449000,-566.04564243,0.00017808,2]
[424445843,1780907449000,-534.25,0.00017808,2]
[424445842,1780907449000,-500.0,0.00017808,2]
[424445845,1780907449000,-500.0,0.00017808,2]
[424445849,1780907449000,-664.29,0.00017808,2]
[424445846,1780907449000,-500.0,0.00017808,2]
[424445848,1780907449000,-500.0,0.00017808,2]
[424445847,1780907449000,-500.0,0.00017808,2]
[424445863,1780907449000,-500.0,0.00017808,2]
[424445844,1780907449000,-500.0,0.00017808,2]
[424445852,1780907449000,-500.0,0.00017808,2]
[424445857,1780907449000,-569.74,0.00017808,2]
[424445851,1780907449000,-500.0,0.00017808,2]
[424445856,1780907449000,-500.0,0.00017808,2]
[424445860,1780907449000,-790.52,0.00017808,2]
[424445859,1780907449000,-154.34884714,0.00017808,2]
[424445864,1780907449000,-673.23,0.00017808,2]
[424445865,1780907449000,-500.0,0.00017808,2]
[424445854,1780907449000,-500.0,0.00017808,2]
[424445855,1780907449000,-516.88,0.00017808,2]
[424445853,1780907449000,-500.0,0.00017808,2]
[424445850,1780907449000,-710.97,0.00017808,2]
[424445858,1780907449000,-500.0,0.00017808,2]
[424445896,1780907450000,-4858.05,0.00017808,2]
[424445892,1780907450000,-1444.43,0.00017808,2]
[424445893,1780907450000,-969.84,0.00017808,2]
[424445895,1780907450000,-711.19,0.00017808,2]
[424445900,1780907450000,-500.0,0.00017808,2]
[424445902,1780907450000,-1111.31,0.00017808,2]
[424445901,1780907450000,-500.0,0.00017808,2]
[424445894,1780907450000,-500.0,0.00017808,2]
[424445897,1780907450000,-781.68,0.00017808,2]
[424445903,1780907450000,-558.46,0.00017808,2]
[424445904,1780907450000,-500.0,0.00017808,2]
[424445898,1780907450000,-500.0,0.00017808,2]
[424445906,1780907450000,-500.0,0.00017808,2]
[424445899,1780907450000,-500.0,0.00017808,2]
[424445907,1780907450000,-500.0,0.00017808,2]
[424445909,1780907450000,-500.0,0.00017808,2]
[424445910,1780907450000,-500.0,0.00017808,2]
[424445912,1780907450000,-439.08996891,0.000179,2]
[424445911,1780907450000,-5048.7640822,0.00017829,2]
[424445913,1780907450000,-751.50978022,0.000179,2]
[424445908,1780907450000,-1785.17,0.00017808,2]
[424445905,1780907450000,-500.0,0.00017808,2]
[424445914,1780907462000,500.0,8.219e-05,2]
[424445915,1780907467000,500.0,8.259e-05,2]
[424445916,1780907468000,238.88684453,8.259e-05,2]
[424445918,1780907614000,-2108.46529224,8.172e-05,2]
[424445919,1780907614000,-300.0,8.255e-05,2]
[424445927,1780907615000,-300.0,8.255e-05,2]
[424445922,1780907615000,-300.0,8.255e-05,2]
[424445920,1780907615000,-300.0,8.255e-05,2]
[424445921,1780907615000,-300.0,8.255e-05,2]
[424445923,1780907615000,-300.0,8.255e-05,2]
[424445924,1780907615000,-300.0,8.255e-05,2]
[424445925,1780907615000,-300.0,8.255e-05,2]
[424445926,1780907615000,-300.0,8.255e-05,2]
[424445929,1780907615000,-300.0,8.255e-05,2]
[424445937,1780907615000,-1000.0,0.00011206,2]
[424445930,1780907615000,-300.0,8.255e-05,2]
[424445931,1780907615000,-300.0,8.255e-05,2]
[424445933,1780907615000,-300.0,8.255e-05,2]
[424445932,1780907615000,-300.0,8.255e-05,2]
[424445934,1780907615000,-600.0,8.419e-05,2]
[424445935,1780907615000,-720.0,9.261e-05,2]
[424445936,1780907615000,-864.0,0.00010187,2]
[424445928,1780907615000,-300.0,8.255e-05,2]
[424445938,1780907615000,-207.53470776,0.00011498,2]
[424445939,1780907644000,-5000.0,9.801e-05,2]
[424445941,1780907644000,-160.0,0.0001,2]
[424445940,1780907644000,-3879.41328857,9.9e-05,2]
[424445944,1780907758000,-5000.0,0.00012081,2]
[424445947,1780907787000,-500.0,0.0001208,2]
[424445948,1780907787000,-500.0,0.0001208,2]
[424445950,1780907787000,-500.0,0.0001208,2]
[424445951,1780907787000,-500.0,0.0001208,2]
[424445949,1780907787000,-500.0,0.0001208,2]
[424445954,1780907787000,-500.0,0.0001208,2]
[424445953,1780907787000,-500.0,0.0001208,2]
[424445955,1780907787000,-500.0,0.0001208,2]
[424445957,1780907787000,-500.0,0.0001208,2]
[424445952,1780907787000,-500.0,0.0001208,2]
[424445956,1780907787000,-500.0,0.0001208,2]
[424445959,1780907788000,-500.0,0.0001208,2]
[424445961,1780907788000,-500.0,0.0001208,2]
[424445962,1780907788000,-500.0,0.0001208,2]
[424445958,1780907788000,-500.0,0.0001208,2]
[424445963,1780907788000,-500.0,0.0001208,2]
[424445964,1780907788000,-500.0,0.0001208,2]
[424445960,1780907788000,-500.0,0.0001208,2]
[424445965,1780907788000,-500.0,0.0001208,2]
[424445966,1780907788000,-500.0,0.0001208,2]
[424445978,1780907789000,-4500.0,0.00012081,2]
[424445977,1780907789000,-500.0,0.0001208,2]
[424445975,1780907789000,-500.0,0.0001208,2]
[424445976,1780907789000,-500.0,0.0001208,2]
[424445973,1780907789000,-500.0,0.0001208,2]
[424445970,1780907789000,-500.0,0.0001208,2]
[424445972,1780907789000,-500.0,0.0001208,2]
[424445971,1780907789000,-500.0,0.0001208,2]
[424445969,1780907789000,-500.0,0.0001208,2]
[424445967,1780907789000,-500.0,0.0001208,2]
[424445968,1780907789000,-500.0,0.0001208,2]
[424445974,1780907789000,-500.0,0.0001208,2]
[424445979,1780907791000,-500.0,0.00012081,2]
[424445985,1780908014000,-5000.0,0.00011839,2]
[424445988,1780908047000,-188.0,0.00011839,2]
[424445987,1780908047000,-5000.0,0.00011721,2]
[424445992,1780908253000,-3608.71526414,0.00011604,2]
[424445991,1780908253000,-626.9028985,0.00011279,2]
[424445990,1780908253000,-1282.38183736,0.00011167,2]
[424445993,1780908278000,-1391.28473586,0.00011604,2]
[424445994,1780908286000,500.0,0.00011837,2]
[424445996,1780908286000,220.80384576,0.00011837,2]
[424445997,1780908286000,1578.05959228,0.00011837,2]
[424446000,1780908286000,1578.05959228,0.00011837,2]
[424445998,1780908286000,1578.05959228,0.00011837,2]
[424445995,1780908286000,1578.05959228,0.00011837,2]
[424446001,1780908286000,1578.05959228,0.00011837,2]
[424446002,1780908286000,1578.05959228,0.00011837,2]
[424446003,1780908286000,1578.05959228,0.00011837,2]
[424446005,1780908286000,634.65982372,0.00011837,2]
[424446004,1780908286000,1578.05959228,0.00011837,2]
[424445999,1780908286000,1578.05959228,0.00011837,2]
[424446017,1780908338000,-1578.05959228,0.00011837,2]
[424446011,1780908338000,-943.39976856,0.00011837,2]
[424446013,1780908338000,-1578.05959228,0.00011837,2]
[424446012,1780908338000,-1578.05959228,0.00011837,2]
[424446015,1780908338000,-1578.05959228,0.00011837,2]
[424446014,1780908338000,-1578.05959228,0.00011837,2]
[424446016,1780908338000,-1578.05959228,0.00011837,2]
[424446018,1780908338000,-1578.05959228,0.00011837,2]
[424446020,1780908338000,-500.0,0.00011837,2]
[424446010,1780908338000,-300.0,0.00011836,2]
[424446022,1780908338000,-500.0,0.00011837,2]
[424446019,1780908338000,-462.58655915,0.00011837,2]
[424446029,1780908338000,-12.59652633,0.00011837,2]
[424446026,1780908338000,-500.0,0.00011837,2]
[424446027,1780908338000,-500.0,0.00011837,2]
[424446028,1780908338000,-500.0,0.00011837,2]
[424446024,1780908338000,-500.0,0.00011837,2]
[424446025,1780908338000,-500.0,0.00011837,2]
[424446021,1780908338000,-500.0,0.00011837,2]
[424446023,1780908338000,-500.0,0.00011837,2]
[424446030,1780908426000,-1319.78946159,0.00011836,2]
[424446033,1780908429000,-313.48432938,0.00011836,2]
[424446032,1780908429000,-504.56269204,0.00011836,2]
[424446031,1780908429000,-1319.78946159,0.00011836,2]
[424446069,1780908632000,-500.0,0.00011717,2]
[424446071,1780908632000,-587.58662013,0.00011717,2]
[424446073,1780908632000,-500.0,0.00011717,2]
[424446070,1780908632000,-500.0,0.00011717,2]
[424446075,1780908632000,-500.0,0.00011717,2]
[424446076,1780908632000,-445.60597125,0.00011717,2]
[424446074,1780908632000,-500.0,0.00011717,2]
[424446072,1780908632000,-500.0,0.00011717,2]
[424446134,1780908638000,-165.85422091,0.00011717,2]
[424446164,1780908638000,-300.0,0.00012321,2]
[424446162,1780908638000,-300.0,0.00012321,2]
[424446156,1780908638000,-300.0,0.00012321,2]
[424446154,1780908638000,-300.0,0.00012321,2]
[424446152,1780908638000,-5247.880537,0.00012267,2]
[424446148,1780908638000,-499.99999999,0.00011717,2]
[424446150,1780908638000,-5000.0,0.00011718,2]
[424446132,1780908638000,-500.0,0.00011717,2]
[424446146,1780908638000,-500.0,0.00011717,2]
[424446128,1780908638000,-500.0,0.00011717,2]
[424446130,1780908638000,-500.0,0.00011717,2]
[424446136,1780908638000,-334.14577909,0.00011717,2]
[424446138,1780908638000,-500.0,0.00011717,2]
[424446140,1780908638000,-500.0,0.00011717,2]
[424446142,1780908638000,-500.0,0.00011717,2]
[424446127,1780908638000,-583.58535523,0.00011717,2]
[424446125,1780908638000,-54.39402875,0.00011717,2]
[424446126,1780908638000,-500.0,0.00011717,2]
[424446158,1780908638000,-300.0,0.00012321,2]
[424446144,1780908638000,-500.0,0.00011717,2]
[424446160,1780908638000,-300.0,0.00012321,2]
[424446194,1780908638000,-1137549.1576551,0.000149,2]
[424446170,1780908638000,-300.0,0.00012321,2]
[424446197,1780908638000,-237.537387,0.000149,2]
[424446196,1780908638000,-4457.46627172,0.000149,2]
[424446168,1780908638000,-300.0,0.00012321,2]
[424446188,1780908638000,-353.84960746,0.00013698,2]
[424446183,1780908638000,-600.0,0.00012321,2]
[424446187,1780908638000,-500.0,0.00013698,2]
[424446189,1780908638000,-1000.0,0.00013699,2]
[424446184,1780908638000,-199.1538993,0.00012486,2]
[424446185,1780908638000,-720.0,0.00013553,2]
[424446186,1780908638000,-500.0,0.00013698,2]
[424446195,1780908638000,-8246.18349024,0.000149,2]
[424446191,1780908638000,-177.865397,0.00013712,2]
[424446192,1780908638000,-177.865397,0.0001429,2]
[424446190,1780908638000,-234.547881,0.00013699,2]
[424446166,1780908638000,-300.0,0.00012321,2]
[424446182,1780908638000,-300.0,0.00012321,2]
[424446180,1780908638000,-300.0,0.00012321,2]
[424446174,1780908638000,-300.0,0.00012321,2]
[424446176,1780908638000,-300.0,0.00012321,2]
[424446172,1780908638000,-300.0,0.00012321,2]
[424446178,1780908638000,-300.0,0.00012321,2]
[424446193,1780908638000,-177.865397,0.00014867,2]
[424446199,1780908640000,-353.19388442,0.00011717,2]
[424446198,1780908640000,-1290.25882907,0.00011717,2]
[424446200,1780908640000,-1290.25882907,0.00011717,2]
[424446202,1780908640000,-1290.25882907,0.00011717,2]
[424446204,1780908640000,-309.9892966,0.00011717,2]
[424446203,1780908640000,-1290.25882907,0.00011717,2]
[424446201,1780908640000,-1290.25882907,0.00011717,2]
[424446206,1780908642000,-105.37458284,0.00011717,2]
[424446228,1780908643000,-1290.25882907,0.00011717,2]
[424446222,1780908643000,-874.89494963,0.00011717,2]